Cogmind - Beta 14 @@@ ROGUE MODE // 2024.10.05 @ 21:46:18 Player: Cherman0 Result: Destroyed by as-86909 with Assembled Blade Performance ------------- Evolutions (0) 0 Regions Visited (2) 400 Robots Destroyed (24) 120 Value Destroyed (340) 340 Prototype IDs (0) 0 Alien Tech Used (0) 0 Bonus (0) 0 TOTAL SCORE: 860 Bonus ------- None Cogmind --------- Core Integrity 0/250 Matter 290/300 Energy 204/250 System Corruption 0% Temperature Cool (30) Movement Treading (320) Ox2 Location -10/Mines Parts ------- > --- POWER (1) -------- Ion Engine > --- PROPULSION (2) --- Light Treads Light Treads > --- UTILITY (2) ------ Huge Storage Unit Sensor Array > --- WEAPON (2) ------- EM Shotgun EM Shotgun > --- INVENTORY (25) --- Fission Core Light Treads Light Treads Light Treads Light Treads Light Treads Light Treads Light Treads Large Storage Unit Large Matter Pod (150) Armor Integrity Analyzer Medium Armor Plating Medium Armor Plating Medium Armor Plating Medium Armor Plating EM Pulse Gun EM Shotgun Medium Laser Medium Laser Light Assault Rifle Light Assault Rifle Bore Cannon Grenade Launcher Mini Grenade Launcher Peak State ------------ > --- POWER ------------ Ion Engine > --- PROPULSION ------- Light Treads Light Treads > --- UTILITY ---------- Huge Storage Unit Medium Armor Plating > --- WEAPON ----------- EM Shotgun EM Shotgun > --- INVENTORY -------- Fission Core Light Treads Light Treads Light Treads Light Treads Light Treads Light Treads Light Treads Light Treads Large Storage Unit Large Matter Pod Armor Integrity Analyzer Medium Armor Plating Medium Armor Plating Medium Armor Plating EM Pulse Gun EM Shotgun EM Shotgun Medium Laser Medium Laser Light Assault Rifle Light Assault Rifle Bore Cannon Grenade Launcher Mini Grenade Launcher [Rating: 14] Favorites ----------- Power Ion Engine Engine Ion Engine Propulsion Light Treads Treads Light Treads Leg Aluminum Leg Utility Huge Storage Unit Device Structural Scanner Storage Huge Storage Unit Protection Medium Armor Plating Weapon Light Assault Rifle Energy Gun Medium Laser Ballistic Gun Light Assault Rifle Build | -11 -10 -10 ------- Run | Yrd Mat Min Slots Evolved . | . . . Power . | . . . Propulsion . | . . . Utility . | . . . Weapon . | . . . Parts Attached 22 | 3 13 6 Power 3 | . 3 . Engine 3 | . 3 . Core . | . . . Reactor . | . . . Propulsion 7 | 2 4 1 Treads 7 | 2 4 1 Leg . | . . . Wheel . | . . . Hover . | . . . Flight . | . . . Utility 8 | 1 5 2 Device 4 | 1 2 1 Storage 2 | . 2 . Processor . | . . . Hackware . | . . . Protection 2 | . 1 1 Artifact . | . . . Weapon 4 | . 1 3 Energy Gun 4 | . 1 3 Energy Cannon . | . . . Ballistic Gun . | . . . Ballistic Cannon . | . . . Launcher . | . . . Special Weapon . | . . . Impact Weapon . | . . . Slashing Weapon . | . . . Piercing Weapon . | . . . Special Melee Weapon . | . . . Unidentified Prototypes . | . . . Parts Lost 5 | . 3 2 Power 1 | . 1 . Propulsion . | . . . Utility 2 | . 1 1 Weapon 2 | . 1 1 Highest Loss Streak 1 | . 1 1 To Critical Strikes . | . . . Average Slot Usage (%) 97 | . 97 96 Engine 13 | . 13 14 Treads 28 | . 28 28 Device 11 | . 11 8 Storage 14 | . 14 14 Energy Gun 16 | . 14 25 Ballistic Gun 11 | . 14 2 Peak Build Rating 14 | 7 10 14 Average Rating 8 | 6 8 12 On Entrance 7 | 6 7 10 Naked Turns . | . . . Heaviest Build 98 | 12 89 98 Greatest Support 40 | 40 40 40 Greatest Overweight (x) 2 | . 2 2 Average Overweight (x) 1 | . 1 2 Largest Inventory Capacity 25 | 8 25 25 Average Capacity 20 | 8 19 25 Most Carried 25 | 6 25 25 Average Carried 16 | 4 14 24 Final Capacity 25 | 8 25 25 Final Carried 25 | 4 25 24 Class Distribution -------------------- 100% | Mutant Dominant Class ---------------- Mutant | -10/Materials Mutant | -10/Mines Resources | -11 -10 -10 ----------- Run | Yrd Mat Min Matter Collected 612 | 242 320 50 Remotely . | . . . Salvage Created 881 | 184 535 162 Parts 48 | 16 32 . Haulers Intercepted 2 | . 2 . Recyclers Shooed 2 | 1 1 . Parts Field Recycled . | . . . Retrieved Matter . | . . . Parts Self-Destructed . | . . . Prevented . | . . . Kills | -11 -10 -10 ------- Run | Yrd Mat Min Combat Hostiles Destroyed 23 | . 14 9 Guns 23 | . 14 9 Classes Destroyed 7 | 2 4 1 Tunneler 5 | 5 . . Hauler 2 | . 2 . Recycler 2 | 1 1 . Watcher 1 | . 1 . Swarmer 9 | . 9 . Grunt 5 | . 5 . Assembled 9 | . . 9 Best Kill Streak 4 | 4 3 4 Combat Bots Only 4 | . 3 4 Max Kills in Single Turn 2 | 1 2 1 Gunslinging 1 | . 1 . Exploded . | . . . Melee . | . . . Uniques/NPCs Destroyed . | . . . Combat | -11 -10 -10 -------- Run | Yrd Mat Min Hostile Shots Fired 101 | . 61 40 Missed 31 | . 17 14 Damage Taken 1042 | . 492 550 Core 259 | . 105 154 Absorbed by Shields . | . . . Core Remaining (%) 100 | 100 . . Volleys Fired 106 | 12 63 31 Largest 2 | 2 2 2 Hottest 90 | 70 70 90 Shots Fired 203 | 24 125 54 Gun 203 | 24 125 54 Cannon . | . . . Launcher . | . . . Special . | . . . Kinetic 76 | 12 63 1 Thermal 75 | 12 62 1 Explosive . | . . . Electromagnetic 52 | . . 52 Robot Hit Streak 13 | 7 13 11 Robot Miss Streak 8 | 2 8 4 Penetration Max . | . . . Secondary Targets 3 | . 2 1 Max Gunslinging Chain 1 | . 1 1 Shots Hit Robots 131 | 14 78 39 Core Hits 64 | 8 29 27 Critical Kills . | . . . Critical Parts Destroyed . | . . . Critical Strikes 4 | 1 3 . Burn 4 | 1 3 . Melee Attacks . | . . . Impact . | . . . Slashing . | . . . Piercing . | . . . Sneak Attacks . | . . . Combat Hostiles . | . . . Follow-up Attacks . | . . . Damage Inflicted 1412 | 156 820 436 Guns 1390 | 156 802 432 Cannons . | . . . Explosions . | . . . Melee . | . . . Ramming 22 | . 18 4 Kinetic 412 | 31 375 6 Thermal 552 | 125 427 . Explosive . | . . . Electromagnetic 426 | . . 426 Impact . | . . . Slashing . | . . . Piercing . | . . . Highest Corruption . | . . . Average Corruption . | . . . Corruption Purged . | . . . Corruption Blocked . | . . . Overload Shots . | . . . Overflow Damage . | . . . Projectiles . | . . . Explosions . | . . . Melee . | . . . Knockbacks . | . . . Impact . | . . . Kinetic . | . . . Secondary . | . . . Self-Inflicted Damage . | . . . Shots . | . . . Rammed 2 | . 1 1 Targets Rammed 3 | . 2 1 Kicked . | . . . Crushed 1 | . 1 . Highest Temperature 272 | 110 175 272 Average Temperature 60 | 45 42 98 Received Heat Transfer 195 | . 195 . Siege Activations . | . . . Robots Corrupted . | . . . Combat Hostiles . | . . . Parts Fried . | . . . Impact Corruptions . | . . . Robots Melted . | . . . Combat Hostiles . | . . . Parts Melted 7 | 3 4 . Heat Transferred 1924 | 444 1480 . Parts Sabotaged . | . . . Parts Stolen . | . . . Parts Stripped . | . . . Power Chain Reactions . | . . . Alert | -11 -10 -10 ------- Run | Yrd Mat Min Peak Influence 166 | 30 166 33 Initial 19 | . 19 13 Average 41 | 14 52 10 Maximum Alert Level . | . . . Low Security (%) 100 | 100 100 100 Level 1 . | . . . Level 2 . | . . . Level 3 . | . . . Level 4 . | . . . Level 5 . | . . . High Security . | . . . Max Security . | . . . Squads Dispatched 1 | . 1 . Investigation 1 | . 1 . Extermination . | . . . Reinforcement . | . . . Assault . | . . . Garrison . | . . . Intercept . | . . . Searches Triggered . | . . . Construction Impeded . | . . . Haulers Reinforced . | . . . Active Scanning Responses . | . . . Cargo Convoy Interrupts . | . . . Stealth | -11 -10 -10 --------- Run | Yrd Mat Min Distress Signals 1 | . 1 . Communications Jammed . | . . . Distress Signals . | . . . Times Spotted 40 | . 24 16 Peak Tracking Total 11 | . 4 11 Tactical Retreats 4 | . 2 2 Traps | -11 -10 -10 ------- Run | Yrd Mat Min Traps Triggered 1 | . 1 . Indirectly . | . . . Trap Hack Attempts . | . . . Triggered . | . . . Disarmed . | . . . Reprogrammed . | . . . Reused . | . . . Traps Extracted . | . . . Installed . | . . . Triggered . | . . . Machines | -11 -10 -10 ---------- Run | Yrd Mat Min Machines Disabled . | . . . Max in Single Turn . | . . . Machines Repaired . | . . . Machines Dismantled . | . . . Machines Sabotaged . | . . . Overloaded Fab Kills . | . . . Hacking | -11 -10 -10 --------- Run | Yrd Mat Min Machines Accessed 8 | . 8 . Terminals 7 | . 7 . Fabricators . | . . . Repair Stations . | . . . Recycling Units 1 | . 1 . Scanalyzers . | . . . Garrison Access . | . . . Total Hacks 22 | . 22 . Successful 10 | . 10 . Failed 12 | . 12 . Catastrophic 2 | . 2 . Database Lockouts . | . . . Manual 22 | . 22 . Terminals 21 | . 21 . Fabricators . | . . . Repair Stations . | . . . Recycling Units 1 | . 1 . Scanalyzers . | . . . Garrison Access . | . . . Terminal Hacks 2 | . 2 . Robot Analysis 2 | . 2 . Fabricator Hacks . | . . . Repair Station Hacks . | . . . Recycling Unit Hacks . | . . . Scanalyzer . | . . . Garrison Access Hacks . | . . . Unauthorized Hacks 8 | . 8 . Terminals 7 | . 7 . Botnet 1 | . 1 . Operators 1 | . 1 . Skim 5 | . 5 . Fabricators . | . . . Repair Stations . | . . . Recycling Units 1 | . 1 . Tunnel 1 | . 1 . Scanalyzers . | . . . Garrison Access . | . . . Data Cores Recovered . | . . . Used . | . . . Hacking Detections 7 | . 7 . Full Trace Events . | . . . Feedback Events . | . . . Feedback Blocked . | . . . Robot Schematics Acquired . | . . . Robots Built . | . . . Authchips . | . . . Time . | . . . Total Robot Build Rating . | . . . Part Schematics Acquired . | . . . Parts Built . | . . . Authchips . | . . . Time . | . . . Total Part Build Rating . | . . . Parts Repaired . | . . . Time . | . . . Parts Recycled . | . . . Recycled Matter . | . . . Retrieved Matter . | . . . Retrieved Components . | . . . Parts Scanalyzed . | . . . Part Schematics Acquired . | . . . Parts Damaged . | . . . Bothacking | -11 -10 -10 ------------ Run | Yrd Mat Min Used RIF Installer . | . . . Robots Hacked . | . . . Non-combat . | . . . Combat . | . . . Robot Hacks Applied . | . . . Relay Couplers Released . | . . . Fabnet Peak Effective % . | . . . Robots Rewired . | . . . Allies Hacked . | . . . Hacks Repelled . | . . . Allies | -11 -10 -10 -------- Run | Yrd Mat Min Total Allies . | . . . Largest Group . | . . . Highest-Rated Group . | . . . Highest-Rated Ally . | . . . Total Orders . | . . . Ally Attacks . | . . . Total Damage . | . . . Kills . | . . . Allies Corrupted . | . . . Allies Melted . | . . . Intel | -11 -10 -10 ------- Run | Yrd Mat Min Robot Analysis Total 2 | . 2 . Derelict Logs Recovered . | . . . Drone Launches . | . . . Drone Recoveries . | . . . Exploration | -11 -10 -10 ------------- Run | Yrd Mat Min Turns Passed 2609 | 80 1920 609 Spaces Moved 865 | 19 690 156 Core . | . . . Treads 865 | 19 690 156 Legs . | . . . Wheels . | . . . Hover . | . . . Flight . | . . . Fastest Speed 160 | 160 160 320 Average Speed 253 | 160 240 320 Slowest Speed 320 | 160 320 320 Overloaded Moves . | . . . Propulsion Burnouts . | . . . Robots Hopped . | . . . Cave-ins Triggered . | . . . Exploration Rate (%) 42 | 4 94 29 Regions Visited 2 Branch Regions 1 Pre-discovered Areas 1 | . 1 . Known Exits Taken 1 | . 1 . Unknown Exits Taken 1 | 1 . . Scrap Searched 1 | . . 1 Spaces Dug . | . . . Terrain Destroyed . | . . . Melee . | . . . Projectile . | . . . AOE . | . . . Terrain Rammed . | . . . Walls Destroyed . | . . . Machines Disabled . | . . . Actions | -11 -10 -10 --------- Run | Yrd Mat Min Total 1088 | 47 831 210 Wait 61 | 12 40 9 Move 863 | 18 689 156 Hop . | . . . Pick Up 23 | . 19 4 Fast Attach 7 | 1 6 . Attach 4 | . 2 2 Detach . | . . . Swap 11 | 2 5 4 Drop 10 | 2 5 3 Fire 106 | 12 63 31 Melee . | . . . Ram . | . . . Kick . | . . . Crush 3 | . 2 1 Escape Stasis . | . . . Rewire . | . . . Trap . | . . . Miscellaneous . | . . . Route ------- -11/Scrapyard -10/Materials (discovered 6 exits: *Mat x3 / *Min x2 / Sub) -10/Mines (discovered 1 exit: Sub) History --------- Turn | Location | Event 25 | -11/Scrapyard | Discovered new exit (range 3) 81 | -11/Scrapyard | Entered Materials 181 | -10/Materials | Discovered new exit (range 16) 305 | -10/Materials | Build established: Mutant 565 | -10/Materials | Discovered new exit (range 16) 681 | -10/Materials | Derelicts attacked the area 784 | -10/Materials | Discovered new exit (range 8) 796 | -10/Materials | Identified exit to Mines 871 | -10/Materials | Learned Storage emergency access door positions 989 | -10/Materials | Learned Storage stockpile data 1034 | -10/Materials | Identified exit to Materials 1034 | -10/Materials | Identified exit to Subcaves 1034 | -10/Materials | Learned location of 1 exit from Materials 1067 | -10/Materials | Learned location of 1 exit from Recycling 1167 | -10/Materials | Learned 2 Mines zone layouts 1234 | -10/Materials | Learned Storage security intel 2001 | -10/Materials | Entered Mines 2092 | -10/Mines | Assembled infested the area 2097 | -10/Mines | Assisted by a Guerilla fighting off Assembled 2146 | -10/Mines | Core integrity fell below 50% 2159 | -10/Mines | Core integrity fell below 20% 2610 | -10/Mines | Destroyed by as-86909 with Assembled Blade Last Messages --------------- 02255_ Acquired 10 matter. 02271_ as-03949 destroyed. 02302_ Acquired Fission Core. 02307_ Dropped Wheel. 02307_ Dropped Com. Wheel. 02308_ Acquired Bore Cannon. 02318_ Acquired Armor Integrity Analyzer. 02331_ as-70653 destroyed. 02340_ Searching scrap... 02340_ Found Lgt. Ion Engine. 02340_ Found Sensor Array. 02340_ Found Lgt. Cannon. 02340_ Found 69 Matter. 02348_ Dropped Lgt. Treads. 02349_ Acquired Sensor Array. 02353_ Acquired 10 matter. 02360_ Acquired 2 matter. 02434_ Acquired 4 matter. 02463_ as-79477 destroyed. 02605_ EM Shotgun destroyed. Map ----- +----------------------------------------------------+ | | | | | | | ???????????????????????????????????????????????? | | ???????????????????????????????????????????????? | | ???????????????????????????????????????????????? | | ???????????????????????????????????????????????? | | ???????????????????????????????????????????????? | | ??????????###??????????????????????????????????? | | ??????????# ###????????????????????????????????? | | ??????????# ##???????????????????????????????? | | ??????????# #???????????????????????????????? | | ??????????## ##########??????????????????????? | | ???????????# #??????????????????????? | | ???????????# #??????????????????????? | | ??????????## ###### #??????????????????????? | | ????####?## #????# #??????????????????????? | | ???## ### #????# ??????????????????????? | | ??## #????# ??????????????????????? | | ?## ##????####??????????????????????? | | ?# ###????####???????????????????????? | | ?# ##?????## ##??????????????????????? | | ?# ##??????# #??????????????????????? | | ?## ##???????# ##?????????????????????? | | ??### ####????????## #?????????? ???????? | | ????####????????????# @ ##????? ??????? | | ?????#>#???????????## a ## ??????? | | ?????? ??######???##% a #????????????? | | ?????????# #???# ### #?????????????? | | ?????????# #?##%= ##??########?????????????? | | ??????????# ## =%##????????????????????????? | | ??????????# ##????????????????????????? | | ??????????# ####?????????????????????? | | ??????????# ##????????????????????? | | ??????????## #????????????????????? | | ???????????## % #????????????????????? | | ????????????## ##????????????????????? | | ????????######### ########??????????????????? | | ???????## ##??## ##?### ##?????????????????? | | ???????# ##??## #?##" #?????????????????? | | ???????# ##### ### #?????????????????? | | ????????# ## #??????????????????? | | ????????# ## ###??????????????????? | | ????????# ###### #??###???????????????? | | ????????# ##### ### ##??????????????? | | ????????## % #??????????????? | | ????????## ##=###% #??????????????? | | ???????## ### #?## ##??????????????? | | ??????## ####%##?#### ####???????????????? | | ??????# ####?##]##????####??????????????????? | +----------------------------------------------------+ Best States ------------- Heat Dissipation 25 Energy Generation 10 Energy Capacity 250 Matter Stores 300 Matter Capacity 300 Sight Range 16 Robot Scan Range 14 Terrain Scan Density 10 Armor Coverage 225 Evasion (%) 40 Recoil Reduction 2 Item Schematics ----------------- None Robot Schematics ------------------ None Fabricated ------------ Nothing Alien Tech Used ----------------- None Achievements -------------- None Challenges ------------ None Game ------ Seed ModifiedCatalystAccelerator Manual? 0 Play Time 00:20:00 Cumulative 170.1 hours Start 2024.10.05 @ 21:23:17 End 2024.10.05 @ 21:46:18 Sessions 1 Manual Loads 0 Difficulty Rogue Special Mode None Game No. 86 Rogue 86 Adventurer 0 Explorer 0 Win Type - Total 1 Types 0/0/0/1/0/0/0/0/0 Lore% 58 Gallery% 66 Achievement% 54 Wizard Run 0 Options --------- Layout 0 ASCII 0 Keyboard 0 Movement Numpad Keybinds 1 Fullscreen 2 Font 18/X11 Map View 76x50 Zoom Use 0% Tactical HUD 1 Map Filters NONE Filters NONE Steam 1 RUN: 4d9cb30f-2d1d-4671-8108-1f6bb916daa6